bitfinex/quotes_ETHUSD_20241130
["timestamp","ask_amount","ask_price","bid_price","bid_amount"]
[1732941849044,0.1,3653.3,3653.1,2.7374]
[1732941849424,0.55,3653.2,3653.1,2.7374]
[1732941851222,0.1,3653.3,3653.1,2.7374]
[1732941851436,0.55,3653.2,3653.1,2.7374]
[1732941851951,0.55,3653.2,3652.8,0.448681]
[1732941852110,0.58421818,3653.2,3652.8,3.186291]
[1732941852725,0.55,3653.2,3652.9,2.73753]
[1732941856150,0.55,3653.2,3652.8,0.448681]
[1732941856151,0.5842182,3653.2,3652.8,0.448681]
[1732941856505,0.55,3652.5,3652.2,1.5596]
[1732941856633,0.55,3652.5,3652.1,2.73815]
[1732941857045,0.55,3652.5,3652.3,2.73797]
[1732941857237,0.55,3652.2,3651.8,2.73837]
[1732941857450,0.55,3652.2,3652.1,2.73813]
[1732941858633,0.55,3652.4,3652.3,2.73798]
[1732941859656,0.1,3652.3,3652.2,2.73806]
[1732941859842,0.65,3652.3,3652.2,2.73806]
[1732941860681,0.1,3652.3,3652.2,2.73806]
[1732941860986,0.65,3652.3,3652.2,2.73806]
[1732941862657,0.1,3652.3,3652.2,2.73806]
[1732941862981,0.55,3652.3,3652.2,2.73806]
[1732941863188,0.1,3652.3,3652.2,2.73806]
[1732941863491,0.55,3652.3,3652.2,2.73806]
[1732941863689,0.55,3652.4,3652.1,2.73815]
[1732941863850,0.55,3652.4,3652.2,2.73803]
[1732941864250,0.55,3652.3,3652.2,2.73803]
[1732941864491,0.65,3652.3,3652.2,2.73803]
[1732941869227,0.55,3652.3,3652.2,2.738]
[1732941873926,0.65,3652.3,3652.2,2.738]
[1732941874221,0.65,3652.3,3652.2,3.285616]
[1732941874423,0.1,3652.4,3652.3,2.738]
[1732941874805,0.65,3652.4,3652.3,2.738]
[1732941881429,0.55,3652.3,3652.1,2.73814]
[1732941882241,0.55,3652.3,3652.2,2.73807]
[1732941883352,0.65,3652.3,3652.2,2.73807]
[1732941883507,0.65,3652.3,3652.0,2.73822]
[1732941883842,0.65,3652.3,3652.0,0.51192442]
[1732941884002,0.55,3652.1,3651.7,2.73843]
[1732941884624,0.55,3651.7,3651.3,2.73875]
[1732941884824,0.55,3651.5,3650.9,2.73903]
[1732941885015,0.55,3651.2,3650.6,2.73921]
[1732941885229,0.65,3650.9,3650.5,2.7393]
[1732941885430,0.55,3650.6,3650.5,2.7393]
[1732941894473,1.6458,3652.0,3650.8,1.6599]
[1732941894678,0.1,3651.8,3651.1,2.7389]
[1732941894974,0.1,3651.8,3651.7,2.73845]
[1732941895863,0.55,3651.7,3651.5,2.73855]
[1732941896067,0.55,3651.5,3651.2,2.7388]
[1732941896378,0.1,3651.6,3651.0,2.73892]
[1732941896379,0.55,3651.3,3651.0,2.73892]
[1732941896736,0.65,3651.3,3651.0,2.73892]
[1732941897873,0.65,3651.3,3651.1,2.73887]
[1732941898465,0.65,3651.3,3650.6,1.6599]
[1732941898654,0.65,3651.3,3651.2,2.73882]
[1732941900577,0.65,3651.3,3651.0,2.73893]
[1732941900785,0.65,3651.3,3651.0,2.73891]
[1732941901282,0.65,3651.3,3651.1,2.73887]
[1732941901449,0.65,3651.3,3651.2,2.73882]
[1732941901649,0.55,3651.3,3651.2,2.73882]
[1732941901878,0.65,3651.3,3651.2,2.73882]
[1732941904940,0.65,3651.3,3650.7,0.43993]
[1732941904941,0.55,3651.2,3651.1,2.7389]
[1732941907078,2.2061,3651.2,3651.1,2.7389]
[1732941909185,2.2061,3651.2,3650.8,2.73911]
[1732941909510,0.55,3651.0,3650.8,2.73911]
[1732941909672,0.55,3651.1,3650.8,2.73911]
[1732941909878,0.1,3650.9,3650.8,2.73911]
[1732941910073,0.65,3650.9,3650.8,2.73911]
[1732941910508,0.55,3650.8,3650.6,2.73924]
[1732941910713,0.55,3650.8,3650.3,1.6193]
[1732941910909,0.55,3650.8,3650.5,2.73932]
[1732941911070,0.55,3650.8,3650.6,2.7392]
[1732941911513,0.55,3650.8,3650.7,2.7392]
[1732941912013,0.55,3651.0,3650.9,4.35835]
[1732941912192,1.6268,3652.4,3651.9,2.7383]
[1732941912384,0.1,3652.0,3651.9,2.7383]
[1732941912574,1.5268,3652.4,3651.9,2.7383]
[1732941912575,0.1,3652.2,3651.9,2.7383]
[1732941912776,1.6268,3652.4,3651.9,2.7383]
[1732941913119,0.1,3652.8,3652.7,2.7377]
[1732941913977,0.1,3652.8,3652.3,4.35728]
[1732941914283,0.1,3652.8,3652.4,2.73791]
[1732941914691,0.1,3652.5,3652.4,2.73791]
[1732941915781,0.55,3652.4,3652.2,2.73807]
[1732941916413,0.65,3652.3,3652.2,2.73807]
[1732941916824,0.55,3652.2,3651.8,1.6193]
[1732941916975,0.58422761,3652.2,3651.8,2.73831]
[1732941917707,0.55,3652.2,3651.6,1.6193]
[1732941917922,1.6268,3652.3,3650.8,2.73908]
[1732941917923,0.55,3651.8,3651.3,1.6193]
[1732941918123,0.55,3651.8,3651.5,2.73857]
[1732941918329,0.55,3651.8,3651.4,2.73867]
[1732941918527,0.55,3651.8,3651.4,2.73861]
[1732941918907,0.55,3651.8,3651.5,2.73859]
[1732941919207,0.55,3651.8,3651.6,2.7385]
[1732941919840,0.55,3651.8,3651.6,2.73846]
[1732941919992,0.55,3651.8,3651.4,2.73865]
[1732941920504,0.55,3651.6,3651.3,2.73869]
[1732941920897,0.55,3651.6,3651.5,2.7386]
[1732941921107,0.55,3651.8,3651.7,2.73845]
[1732941921627,0.55,3651.8,3651.5,2.7386]
[1732941922132,0.55,3651.8,3651.7,2.73845]
[1732941922345,0.55,3651.8,3651.6,2.73851]
[1732941922346,0.55,3651.8,3651.3,0.41656539]
[1732941922639,0.55,3651.8,3651.6,2.73845]
[1732941922994,0.55,3651.8,3651.7,2.73845]
[1732941923201,0.55,3651.6,3651.5,2.73853]
[1732941923421,0.55,3651.6,3651.2,2.73882]
[1732941923601,0.55,3651.3,3651.2,2.73882]
[1732941924498,0.1,3651.1,3651.0,2.73897]
[1732941924706,0.65,3651.1,3651.0,2.73897]
[1732941925943,0.55,3651.1,3651.0,2.73897]
[1732941926344,0.55,3651.3,3651.1,2.73882]
[1732941926643,0.65,3651.2,3651.1,2.73882]
[1732941927632,0.1,3651.2,3651.1,2.73882]
[1732941927949,0.65,3651.2,3651.1,2.73882]
[1732941930454,0.55,3651.2,3651.1,2.73882]
[1732941930749,0.55,3651.3,3651.2,2.73882]
[1732941935042,0.55,3651.3,3651.0,2.73896]
[1732941935264,0.55,3651.3,3650.7,1.6193]
[1732941935265,0.55,3651.3,3651.1,2.73888]
[1732941935835,0.55,3651.3,3651.2,2.73882]
[1732941938056,0.55,3651.3,3651.1,2.73887]
[1732941938253,0.1,3651.2,3651.1,2.73887]
[1732941938569,0.1,3651.2,3650.9,2.739]
[1732941938570,0.65,3651.2,3650.9,2.739]
[1732941938735,2.0664,3651.1,3650.9,2.739]
[1732941938930,2.0664,3651.1,3651.0,2.73897]
[1732941939266,0.55,3651.1,3651.0,2.73897]
[1732941939826,0.55,3651.3,3651.2,2.73882]
[1732941941558,0.1,3651.1,3650.8,2.73906]
[1732941941771,0.55,3650.9,3650.8,2.73906]
[1732941942454,0.55,3650.9,3650.6,2.73924]
[1732941942661,0.55,3650.9,3650.3,1.5466]
[1732941942662,0.1,3650.8,3650.5,2.73935]
[1732941942976,0.55,3650.7,3650.3,1.5466]
[1732941943174,0.55,3650.7,3650.6,2.73927]
[1732941944241,0.55,3650.7,3650.1,1.6603]
[1732941944441,0.55,3650.7,3650.3,2.73944]
[1732941944951,0.55,3650.7,3650.2,2.73951]
[1732941945641,0.55,3650.7,3650.4,2.73936]
[1732941949549,0.55,3650.7,3650.5,2.73932]
[1732941951798,0.55,3650.7,3650.3,2.73949]
[1732941951972,0.55,3650.7,3650.5,2.73929]
[1732941952291,0.55,3650.7,3650.6,2.73927]
[1732941952478,0.1,3651.4,3651.2,2.73882]
[1732941952681,1.7237,3651.6,3651.4,2.73864]
[1732941952895,0.1,3651.4,3651.3,2.73873]
[1732941953392,0.1,3651.4,3650.7,4.29355]
[1732941953393,0.1,3651.4,3651.1,2.73889]
[1732941953906,2.65612371,3651.3,3650.7,1.5544]
[1732941954092,2.65612371,3651.3,3651.0,2.73892]
[1732941954566,2.65612371,3651.3,3650.8,2.9493478]
[1732941954897,2.65612371,3651.3,3651.0,2.7389]
[1732941955079,0.55,3650.9,3650.7,2.73919]
[1732941955399,2.65612371,3650.9,3650.5,2.73931]
[1732941955559,0.55,3650.7,3650.1,4.29403]
[1732941955760,0.65,3650.7,3650.5,2.73928]
[1732941955970,0.65,3650.7,3650.3,2.73944]
[1732941955971,0.65,3650.7,3650.2,3.174443]
[1732941956189,0.65,3650.7,3650.5,2.73932]
[1732941956500,0.1,3651.6,3650.6,1.5544]
[1732941956710,0.1,3651.6,3651.5,2.7386]
[1732941956864,2.10612371,3651.9,3651.5,4.29297]
[1732941957065,0.1,3651.7,3651.5,1.5544]
[1732941957264,0.1,3651.7,3649.7,5.10612371]
[1732941957265,0.1,3651.7,3651.0,1.5544]
[1732941957476,2.10612371,3651.5,3651.0,2.73895]
[1732941957692,2.10612371,3651.1,3650.6,2.73927]
[1732941957978,2.10612371,3650.7,3650.0,0.055]
[1732941958187,2.10612371,3650.7,3650.2,2.73956]
[1732941958361,0.1,3650.2,3650.0,0.055]
[1732941958567,0.55,3650.1,3650.0,0.055]
[1732941963306,3.28965,3650.1,3650.0,0.055]
[1732941963506,0.55,3650.1,3650.0,0.055]
[1732941964823,3.28965,3650.1,3650.0,0.055]
[1732941965131,0.55,3650.1,3650.0,0.055]
[1732941968813,3.28965,3650.1,3650.0,0.055]
[1732941969021,3.28965,3650.1,3646.8,2.74207]
[1732941969022,0.1,3649.2,3648.4,1.6502]
[1732941969225,0.55,3648.8,3648.6,2.74074]
[1732941969979,0.55,3648.8,3648.5,2.74082]
[1732941970192,0.55,3648.8,3648.4,1.6502]
[1732941970475,0.55,3648.8,3648.3,2.74092]
[1732941970953,5.39674371,3648.8,3648.1,1.6502]
[1732941971380,5.39674371,3648.8,3647.9,2.74129]
[1732941971578,5.39674371,3648.8,3647.9,5.48258]
[1732941971889,5.39674371,3648.8,3648.0,2.74121]
[1732941972042,5.39674371,3648.8,3647.8,4.39154]
[1732941973275,5.39674371,3648.8,3647.9,2.7413]
[1732941973472,5.39674371,3648.8,3648.0,2.74117]
[1732941974367,5.39674371,3648.8,3648.0,2.74119]
[1732941974707,5.39674371,3648.8,3647.8,4.3915]
[1732941974876,5.39674371,3648.8,3647.9,2.74129]
[1732941975202,5.39674371,3648.8,3648.0,2.74119]
[1732941975705,5.39674371,3648.8,3647.8,1.6502]
[1732941975706,5.39674371,3648.8,3647.8,4.39154]
[1732941976068,5.39674371,3648.8,3647.9,2.74128]
[1732941976998,5.39674371,3648.8,3648.1,2.74114]
[1732941977969,0.1,3649.1,3648.5,1.6502]
[1732941978171,0.1,3649.1,3648.8,5.46640547]
[1732941979703,0.55,3649.0,3648.9,2.74055]
[1732941979907,2.74001,3649.7,3648.8,5.46640547]
[1732941979908,2.10612371,3649.6,3649.1,2.7404]
[1732941980212,0.1,3649.5,3649.0,1.6502]
[1732941980367,0.1,3649.7,3649.1,2.7404]
[1732941980575,0.1,3649.7,3649.4,2.74015]
[1732941981216,0.1,3650.2,3650.1,2.7396]
[1732941981387,0.1,3650.4,3650.1,4.3898]
[1732941981591,0.1,3650.6,3650.2,2.73956]
[1732941981920,0.1,3650.4,3650.3,2.73944]
[1732941982413,0.1,3650.4,3650.1,4.38984]
[1732941982583,0.1,3650.2,3650.1,4.38984]
[1732941982777,0.1,3650.2,3650.1,5.102803]
[1732941983306,0.65,3650.2,3650.1,5.102803]
[1732941983474,0.55,3650.1,3649.8,2.73981]
[1732941983797,0.55,3650.1,3649.8,2.73986]
[1732941984005,0.55,3650.1,3649.9,2.73973]
[1732941985014,0.55,3650.1,3649.7,2.73991]
[1732941985391,0.55,3650.1,3649.3,4.39037]
[1732941985712,0.55,3650.1,3649.4,2.74014]
[1732941986018,0.55,3650.1,3649.6,2.73995]
[1732941986189,0.55,3650.1,3649.4,2.74017]
[1732941986190,0.55,3650.1,3649.7,2.73995]
[1732941986977,0.55,3650.1,3649.3,2.36182055]
[1732941986978,0.55,3650.1,3649.8,2.73986]
[1732941987390,0.55,3650.1,3649.6,2.74001]
[1732941987984,0.55,3650.1,3649.7,2.73992]
[1732941990615,0.55,3649.9,3649.7,2.73992]
[1732941990923,0.55,3649.9,3649.5,2.7401]
[1732941991218,0.55,3649.9,3649.3,5.10206055]
[1732941991219,0.55,3649.9,3649.6,2.74]
[1732941992199,0.55,3649.9,3649.8,2.73987]
[1732941992825,0.55,3650.2,3649.6,0.78419906]
[1732941993122,0.55,3650.2,3650.1,2.73965]
[1732941999644,0.1,3650.3,3650.1,2.73965]
[1732941999645,0.1,3650.5,3650.2,2.73957]
[1732941999839,8.98,3651.6,3650.2,2.73957]
[1732941999840,0.1,3650.6,3650.5,2.73935]
[1732942000190,0.1,3650.6,3650.5,3.56256269]
[1732942001725,0.55,3650.6,3650.5,3.56256269]
[1732942001903,0.65,3650.6,3650.5,3.56256269]
[1732942002234,0.1,3650.6,3650.5,3.56256269]
[1732942002528,0.65,3650.6,3650.5,3.56256269]
[1732942003597,0.1,3650.6,3650.5,3.56256269]
[1732942003925,0.65,3650.6,3650.5,3.56256269]
[1732942007746,1.626,3651.8,3651.5,2.7386]
[1732942007930,2.10612371,3652.2,3651.2,1.5446]
[1732942007931,0.1,3652.2,3651.2,1.5446]
[1732942008129,0.1,3652.2,3652.1,2.73815]
[1732942008333,1.626,3652.5,3652.2,2.73801]
[1732942008540,1.626,3652.5,3652.1,2.73815]
[1732942008744,1.626,3652.5,3652.3,2.73798]
[1732942009710,0.55,3652.4,3652.2,2.73805]
[1732942010235,0.55,3652.4,3652.3,2.738]
[1732942010410,0.1,3652.7,3652.5,2.73784]
[1732942010629,1.6017,3652.9,3652.5,2.73784]
[1732942010830,1.6017,3652.9,3651.8,1.5446]
[1732942011029,0.1,3652.7,3652.2,2.73802]
[1732942011268,0.1,3652.2,3652.1,2.73813]
[1732942011962,0.65,3652.2,3652.1,2.73813]
[1732942012374,0.55,3652.5,3652.3,2.73795]
[1732942013742,0.55,3652.5,3652.1,5.47626]
[1732942014054,0.65,3652.2,3652.1,2.73813]
[1732942014241,0.65,3652.2,3651.9,3.166598]
[1732942014242,0.55,3652.4,3651.9,3.166598]
[1732942014439,0.55,3652.4,3652.2,2.73806]
[1732942014768,0.55,3652.3,3652.2,2.73806]
[1732942015060,0.55,3652.4,3652.3,2.73796]
[1732942015864,1.5017,3652.9,3652.3,0.547602]
[1732942016027,0.1,3653.1,3653.0,2.73747]
[1732942016969,0.1,3653.2,3653.0,4.33097]
[1732942017264,0.1,3653.2,3653.1,2.7374]
[1732942018881,0.55,3653.5,3653.3,2.73724]
[1732942019077,0.65,3653.4,3653.3,2.73724]
[1732942020042,0.65,3653.4,3653.3,2.73725]
[1732942020476,0.1,3654.0,3653.7,2.73687]
[1732942021066,0.1,3654.0,3653.8,2.73682]
[1732942021243,0.1,3654.2,3653.9,2.73674]
[1732942021928,0.1,3654.0,3653.9,2.73674]
[1732942022185,0.65,3654.0,3653.9,2.73674]
[1732942022482,0.55,3653.9,3653.8,2.73687]
[1732942025250,0.55,3653.9,3653.8,3.284255]
[1732942026305,0.55,3653.9,3653.8,2.73687]
[1732942028983,0.1,3654.0,3653.9,4.3667]
[1732942029190,0.1,3654.4,3654.2,2.73656]
[1732942029767,1.6699,3654.6,3654.2,2.73656]
[1732942030298,0.55,3654.5,3654.2,2.73656]
[1732942030762,0.55,3654.3,3654.2,2.73656]
[1732942031787,0.55,3654.5,3654.3,2.73649]
[1732942031985,0.55,3654.8,3654.3,0.547321]
[1732942032166,0.1,3655.4,3655.2,2.73581]
[1732942032364,0.1,3655.8,3655.4,2.73566]
[1732942032682,1.5699,3656.1,3655.1,2.73587]
[1732942032683,0.1,3655.6,3655.1,2.73587]
[1732942032884,0.1,3655.4,3655.2,2.73578]
[1732942033058,0.1,3655.4,3655.3,3.282915]
[1732942033492,0.65,3655.4,3655.3,3.282915]
[1732942033698,0.55,3655.3,3655.1,2.73587]
[1732942033869,0.55,3655.3,3655.1,2.73582]
[1732942034072,0.55,3655.3,3655.0,2.73596]
[1732942034278,0.1,3655.4,3654.5,2.73632]
[1732942034279,0.1,3655.0,3654.5,2.73632]
[1732942034477,0.55,3654.9,3654.5,3.2836]
[1732942034679,0.55,3654.9,3654.7,2.73613]
[1732942035224,0.55,3654.6,3654.1,2.73659]
[1732942035908,0.55,3654.6,3653.8,1.6299]
[1732942035909,0.55,3654.6,3654.4,2.73638]
[1732942036872,0.55,3654.6,3653.9,2.73673]
[1732942037200,0.55,3654.6,3654.0,2.73667]
[1732942037414,2.1199,3654.1,3652.9,0.55985063]
[1732942037566,0.55,3653.1,3652.5,1.6299]
[1732942037906,0.55,3653.1,3653.0,2.73747]
[1732942038600,0.55,3653.1,3652.8,2.73762]
[1732942039168,0.55,3653.1,3652.6,2.90076]
[1732942039697,0.55,3653.1,3652.8,2.73761]
[1732942040479,0.55,3653.1,3652.7,2.73768]
[1732942040682,0.55,3653.1,3652.6,0.16299]
[1732942041078,0.55,3653.1,3652.7,2.73769]
[1732942041571,0.55,3653.1,3652.7,3.30155]
[1732942042379,0.55,3653.1,3652.7,2.73769]
[1732942042809,0.65,3653.2,3652.9,2.73754]
[1732942043304,0.65,3653.2,3652.7,2.7377]
[1732942044081,0.65,3653.2,3652.2,4.36796]
[1732942044082,0.1,3652.9,3652.2,4.36796]
[1732942044281,0.1,3652.9,3652.2,3.174856]
[1732942044282,0.55,3652.8,3652.2,3.174856]
[1732942044494,2.73733,3653.2,3652.2,3.174856]
[1732942044495,0.55,3652.5,3652.3,2.73793]
[1732942044979,0.1,3652.6,3652.3,2.73793]
[1732942045317,0.55,3652.5,3652.3,2.73793]
[1732942047483,0.55,3652.5,3652.2,0.436796]
[1732942047704,2.122,3652.5,3651.9,2.73829]
[1732942047904,0.1,3652.2,3651.5,2.7386]
[1732942048079,0.55,3652.1,3651.7,2.73839]
[1732942048279,0.55,3652.1,3651.8,2.7383]
[1732942048693,0.55,3652.1,3651.9,2.73828]
[1732942048883,0.1,3652.2,3651.9,2.73828]
[1732942049084,0.55,3652.1,3651.9,2.73828]
[1732942049312,0.55,3652.3,3651.9,2.73828]
[1732942049516,0.55,3652.1,3651.9,2.73828]
[1732942049684,0.1,3652.2,3652.1,2.73815]
[1732942049878,0.55,3652.2,3652.1,4.24505]
[1732942050411,0.1,3652.5,3652.3,2.73794]
[1732942051173,1.572,3653.3,3652.3,1.5069]
[1732942051374,0.42046649,3654.6,3653.5,2.73708]
[1732942051375,1.6256,3654.1,3653.5,2.73708]
[1732942051684,0.1,3653.9,3653.1,1.5857]
[1732942051886,0.1,3653.9,3653.3,2.73719]
[1732942052088,4.26225,3654.1,3653.3,2.73719]
[1732942052089,0.1,3653.6,3653.3,2.73719]
[1732942052293,0.1,3653.6,3652.7,1.5857]
[1732942052478,0.1,3653.6,3653.3,2.73722]
[1732942053008,0.1,3653.6,3653.0,2.73742]
[1732942053009,0.55,3653.5,3653.0,2.73742]
[1732942053212,0.55,3653.5,3653.1,2.73735]
[1732942053375,0.55,3653.5,3653.0,2.73743]
[1732942053576,0.55,3653.5,3653.3,2.7372]
[1732942054286,0.55,3653.5,3652.7,1.5857]
[1732942054618,0.55,3653.5,3653.4,2.73717]
[1732942055371,0.55,3653.5,3653.2,2.7373]
[1732942055829,0.55,3653.5,3653.3,2.73723]
[1732942056486,0.55,3653.5,3652.5,0.55403376]
[1732942056487,0.55,3653.3,3652.4,2.73788]
[1732942056786,0.55,3652.9,3652.5,2.73782]
[1732942057020,0.55,3652.9,3651.9,1.5857]
[1732942057200,3.63172371,3653.3,3651.2,1.5857]
[1732942057201,0.55,3652.6,3651.2,1.5857]
[1732942057528,0.55,3652.6,3652.2,2.73807]
[1732942057529,0.55,3652.3,3652.2,2.73807]
[1732942057818,0.55,3652.5,3652.3,2.738]
[1732942057993,0.55,3652.7,3652.4,2.73792]
[1732942058194,0.65,3652.5,3652.4,2.73792]
[1732942058585,0.65,3652.5,3651.3,0.96655069]
[1732942058586,0.65,3652.4,3651.4,4.32432]
[1732942058781,0.65,3652.4,3652.0,2.73818]
[1732942058982,0.65,3652.4,3651.7,2.73839]
[1732942059220,0.55,3652.1,3651.7,2.7384]
[1732942060022,0.55,3652.1,3652.0,2.73822]
[1732942060209,0.55,3652.4,3652.3,2.738]
[1732942060721,0.55,3652.5,3652.3,2.738]
[1732942060896,0.55,3652.5,3652.4,2.73792]
[1732942061090,0.55,3652.7,3652.4,2.73792]
[1732942061288,0.55,3652.7,3652.6,2.73777]
[1732942061597,0.55,3652.7,3652.4,2.73791]
[1732942061598,0.55,3652.6,3652.4,2.73791]
[1732942061817,0.55,3652.6,3652.5,2.73785]
[1732942062020,0.55,3652.8,3652.5,2.73785]
[1732942062333,0.55,3652.8,3652.7,2.73762]
[1732942062634,0.55,3652.8,3652.5,2.73785]
[1732942062925,0.55,3652.6,3652.2,2.73801]
[1732942063134,2.0756,3652.6,3652.2,2.73801]
[1732942063306,2.0756,3652.6,3651.8,1.5857]
[1732942063307,2.0756,3652.6,3652.0,2.73821]
[1732942063505,2.0756,3652.6,3651.8,2.73835]
[1732942063506,0.55,3652.1,3651.8,2.73835]
[1732942064527,0.55,3652.1,3651.6,0.22719899]
[1732942064731,0.55,3652.1,3651.6,2.73849]
[1732942065701,0.55,3651.7,3651.1,1.6394]
[1732942065913,0.55,3651.7,3651.4,2.73862]
[1732942066106,0.55,3651.7,3651.5,2.73859]
[1732942066626,0.55,3651.7,3651.3,2.73873]
[1732942066627,0.55,3651.7,3651.6,2.73852]
[1732942067536,0.1,3651.6,3651.1,2.73882]
[1732942068050,0.55,3651.5,3651.4,2.73867]
[1732942068242,0.55,3651.5,3651.4,3.012537]
[1732942069323,0.55,3651.5,3651.4,2.73867]
[1732942070344,0.1,3651.6,3651.4,2.73867]
[1732942070652,0.55,3651.5,3651.2,2.73879]
[1732942070805,0.55,3651.3,3651.1,2.73889]
[1732942071008,0.55,3651.3,3651.2,2.73882]
[1732942071313,0.55,3651.3,3651.0,2.73896]
[1732942072543,0.1,3651.4,3651.3,2.73875]
[1732942072953,0.65,3651.4,3651.3,2.73875]
[1732942073312,1.6094,3652.0,3651.5,2.73853]
[1732942073547,0.1,3651.7,3651.6,2.73851]
[1732942073742,0.1,3651.7,3651.3,2.7387]
[1732942073951,0.1,3651.7,3651.4,2.73865]
[1732942074156,0.1,3651.7,3651.1,2.73885]
[1732942074334,0.1,3651.4,3651.1,2.73885]
[1732942074582,0.55,3651.3,3651.1,2.73885]
[1732942074780,0.55,3651.3,3650.6,0.51210144]
[1732942074982,0.55,3651.3,3651.2,2.73882]
[1732942076391,0.55,3651.1,3650.9,2.73897]
[1732942076604,0.55,3650.9,3650.7,2.73916]
[1732942077156,0.55,3650.9,3650.5,2.73933]
[1732942077398,0.55,3650.6,3650.5,2.73933]
[1732942077566,0.55,3650.6,3650.2,2.73956]
[1732942077888,0.55,3650.6,3650.4,2.73937]
[1732942079707,0.55,3650.6,3649.8,1.5611]
[1732942079870,0.55,3650.4,3650.2,2.73957]
[1732942080066,0.55,3650.4,3650.3,2.7395]
[1732942080413,0.55,3650.6,3650.4,2.73939]
[1732942080708,0.55,3650.6,3650.2,2.73957]
[1732942080871,1.5015,3650.8,3650.1,2.73965]
[1732942080872,0.55,3650.2,3650.1,2.73965]
[1732942081470,0.55,3650.4,3650.3,2.73943]
[1732942081667,0.55,3650.2,3650.1,2.73965]
[1732942083674,0.55,3650.5,3650.1,2.73965]
[1732942083879,0.55,3650.2,3650.1,2.73965]
[1732942086935,0.55,3650.2,3650.0,2.73968]
[1732942087077,0.55,3650.2,3649.9,2.73974]
[1732942087414,0.55,3650.2,3650.1,2.73965]
[1732942089886,0.65,3650.3,3650.2,2.73957]
[1732942090499,0.65,3650.3,3650.1,2.73965]
[1732942090500,0.55,3650.4,3650.3,2.73945]
[1732942090701,0.1,3650.9,3650.3,4.76180946]
[1732942090875,0.14111039,3651.3,3650.5,2.73935]
[1732942091079,0.14111039,3651.3,3651.2,2.73882]
[1732942091777,0.1,3651.4,3651.2,2.73882]
[1732942091978,0.1,3651.8,3651.1,1.5692]
[1732942092174,0.1,3652.1,3651.2,0.15692]
[1732942092487,0.1,3652.1,3651.8,2.7383]
[1732942092812,0.1,3651.8,3651.6,2.7385]
[1732942093116,0.1,3651.8,3651.4,2.73866]
[1732942093326,2.10612371,3652.1,3650.8,2.73912]
[1732942093527,0.1,3652.0,3651.6,2.73846]
[1732942093702,0.1,3652.0,3651.3,2.73867]
[1732942093890,0.1,3652.0,3651.5,2.73857]
[1732942094595,0.65,3652.0,3651.8,2.73831]
[1732942094793,0.55,3652.1,3652.0,2.73822]
[1732942094997,0.55,3652.1,3651.9,2.7383]
[1732942094998,0.55,3652.4,3652.1,2.73813]
[1732942095426,0.55,3652.2,3652.1,2.73813]
[1732942095597,0.55,3652.2,3652.0,2.7382]
[1732942095802,0.65,3652.1,3652.0,2.7382]
[1732942096022,0.1,3652.4,3652.3,2.738]
[1732942097235,0.1,3652.5,3652.3,2.738]
[1732942097394,0.1,3652.5,3652.0,0.704577]
[1732942097595,0.55,3652.4,3652.3,2.738]
[1732942098038,1.5437,3652.9,3652.6,2.73777]
[1732942098039,0.1,3652.7,3652.6,2.73777]
[1732942098198,1.6437,3652.9,3652.6,2.73777]
[1732942098506,0.1,3652.7,3652.6,2.73777]
[1732942098693,0.1,3652.7,3652.4,2.73789]
[1732942099335,0.55,3652.6,3652.4,2.73789]
[1732942099507,0.55,3652.6,3652.5,2.73785]
[1732942100815,0.1,3652.6,3652.5,2.73785]
[1732942101018,0.65,3652.6,3652.5,2.73785]
[1732942101521,0.1,3652.6,3652.5,2.73785]
[1732942101938,0.65,3652.6,3652.5,2.73785]
[1732942103348,0.65,3652.6,3652.5,3.285424]
[1732942103505,0.55,3652.7,3652.6,2.73773]
[1732942104709,0.55,3652.7,3652.3,2.73798]
[1732942104910,0.55,3652.5,3652.4,2.73791]
[1732942105650,0.1,3652.6,3652.1,2.73814]
[1732942105849,0.1,3652.6,3651.7,2.73841]
[1732942105850,2.111,3652.3,3651.7,2.73841]
[1732942106156,2.111,3652.3,3651.8,2.73835]
[1732942106643,2.111,3652.3,3651.9,2.73827]
[1732942107052,2.111,3652.3,3651.6,2.73852]
[1732942107217,2.111,3652.3,3652.0,2.73817]
[1732942107411,2.111,3652.3,3652.1,2.73813]
[1732942107618,2.111,3652.3,3652.0,2.73817]
[1732942112145,2.111,3652.3,3651.8,2.73834]
[1732942112473,2.111,3652.3,3651.2,2.73882]
[1732942112474,0.55,3651.9,3651.2,2.73882]
[1732942112638,0.55,3651.9,3649.9,2.10612371]
[1732942112639,0.55,3651.3,3650.6,2.73925]
[1732942112829,0.1,3651.4,3649.1,2.74036]